fUSD/lending_fUSD_20240105
["ID","MTS","AMOUNT","RATE_DAILY","PERIOD"]
[310296456,1704463949288,-2917.19,0.00032795,2]
[310296457,1704463949299,-1039.42,0.00032795,2]
[310296458,1704463949309,-500.0,0.00032795,2]
[310296459,1704463949319,-588.09,0.00032795,2]
[310296460,1704463949332,-500.0,0.00032795,2]
[310296461,1704463949342,-984.84,0.00032795,2]
[310296462,1704463949351,-1577.2,0.00032795,2]
[310296463,1704463949361,-1004.25,0.00032795,2]
[310296464,1704463949371,-500.0,0.00032795,2]
[310296465,1704463949381,-500.0,0.00032795,2]
[310296466,1704463949392,-941.19,0.00032795,2]
[310296467,1704463949402,-500.0,0.00032795,2]
[310296468,1704463949412,-500.0,0.00032795,2]
[310296469,1704463949422,-587.5,0.00032795,2]
[310296470,1704463949432,-684.69,0.00032795,2]
[310296471,1704463949442,-500.0,0.00032795,2]
[310296472,1704463949453,-500.0,0.00032795,2]
[310296473,1704463949464,-502.66,0.00032795,2]
[310296474,1704463949475,-1249.93,0.00032795,2]
[310296475,1704463949485,-700.39,0.00032795,2]
[310296476,1704463949495,-960.04,0.00032795,2]
[310296477,1704463949506,-500.0,0.00032795,2]
[310296478,1704463949516,-537.41,0.00032795,2]
[310296479,1704463949526,-667.92,0.00032795,2]
[310296480,1704463949536,-510.05,0.00032795,2]
[310296481,1704463949547,-978.16,0.00032795,2]
[310296482,1704463949557,-500.0,0.00032795,2]
[310296483,1704463949567,-945.97,0.00032795,2]
[310296484,1704463949578,-1019.98,0.00032795,2]
[310296485,1704463949588,-500.0,0.00032795,2]
[310296486,1704463949598,-803.57,0.00032795,2]
[310296487,1704463949608,-889.76,0.00032795,2]
[310296488,1704463949618,-610.92,0.00032795,2]
[310296489,1704463949629,-605.09,0.00032795,2]
[310296490,1704463949640,-500.0,0.00032795,2]
[310296491,1704463949650,-571.57,0.00032795,2]
[310296492,1704463949660,-500.0,0.00032795,2]
[310296493,1704463949669,-500.0,0.00032795,2]
[310296494,1704463949680,-500.0,0.00032795,2]
[310296495,1704463949690,-500.0,0.00032795,2]
[310296496,1704463949700,-500.0,0.00032795,2]
[310296497,1704463949709,-184.0,0.000328,21]
[310296498,1704463949719,-958.6,0.00032834,2]
[310296499,1704463949729,-209.0,0.0003284,2]
[310296500,1704463949739,-418.72,0.00032853,2]
[310296501,1704463949749,-500.0,0.00032876,2]
[310296502,1704463949759,-500.0,0.00032876,2]
[310296503,1704463949769,-500.0,0.00032876,2]
[310296504,1704463949779,-579.15463715,0.00032876,2]
[310296505,1704463949790,-578.99,0.00032876,2]
[310296506,1704463949800,-570.77,0.00032876,2]
[310296507,1704463949810,-500.0,0.00032876,2]
[310296508,1704463949820,-282.73497521,0.00032876,2]
[310296509,1704463949831,-500.0,0.00032876,2]
[310296510,1704463949840,-500.0,0.00032876,2]
[310296511,1704463949850,-500.0,0.00032876,2]
[310296512,1704463949860,-585.59232197,0.00032876,2]
[310296513,1704463949869,-500.0,0.00032876,2]
[310296514,1704463949879,-964.18,0.00032876,2]
[310296515,1704463949888,-500.0,0.00032876,2]
[310296516,1704463949898,-500.0,0.00032876,2]
[310296517,1704463949908,-500.0,0.00032876,2]
[310296518,1704463949918,-500.0,0.00032876,2]
[310296519,1704463949927,-173.07,0.00032876,2]
[310296520,1704463949936,-500.0,0.00032876,2]
[310296521,1704463949946,-500.0,0.00032876,2]
[310296522,1704463949955,-500.0,0.00032876,2]
[310296523,1704463949965,-500.0,0.00032876,2]
[310296524,1704463949975,-500.0,0.00032876,2]
[310296525,1704463949985,-500.0,0.00032876,2]
[310296526,1704463949994,-500.0,0.00032876,2]
[310296527,1704463950004,-178.79786141,0.00032876,2]
[310296528,1704463950013,-500.0,0.00032876,2]
[310296529,1704463950023,-500.0,0.00032876,2]
[310296530,1704463950032,-500.0,0.00032876,2]
[310296531,1704463950042,-500.0,0.00032876,2]
[310296532,1704463950051,-776.92,0.00032876,2]
[310296533,1704463950061,-500.0,0.00032876,2]
[310296534,1704463950072,-500.0,0.00032876,2]
[310296535,1704463950083,-500.0,0.00032876,2]
[310296536,1704463950092,-500.0,0.00032876,2]
[310296537,1704463950102,-500.0,0.00032876,2]
[310296538,1704463950111,-754.78,0.00032876,2]
[310296539,1704463950121,-608.57,0.00032876,2]
[310296540,1704463950131,-500.0,0.00032876,2]
[310296541,1704463950140,-500.0,0.00032876,2]
[310296542,1704463950150,-500.0,0.00032876,2]
[310296543,1704463950160,-500.0,0.00032876,2]
[310296544,1704463950170,-574.49,0.00032876,2]
[310296545,1704463950180,-500.0,0.00032876,2]
[310296546,1704463950190,-500.0,0.00032876,2]
[310296547,1704463950199,-500.0,0.00032876,2]
[310296548,1704463950209,-597.18,0.00032876,2]
[310296549,1704463950219,-500.0,0.00032876,2]
[310296550,1704463950229,-535.87,0.00032876,2]
[310296551,1704463950238,-508.44676478,0.00032876,2]
[310296552,1704463950248,-500.0,0.00032876,2]
[310296553,1704463950258,-500.0,0.00032876,2]
[310296554,1704463950268,-500.0,0.00032876,2]
[310296555,1704463950278,-500.0,0.00032876,2]
[310296556,1704463950288,-500.0,0.00032876,2]
[310296557,1704463950298,-847.71,0.00032876,2]
[310296558,1704463950309,-500.0,0.00032876,2]
[310296559,1704463950320,-500.0,0.00032876,2]
[310296560,1704463950330,-500.0,0.00032876,2]
[310296561,1704463950340,-500.0,0.00032876,2]
[310296562,1704463950349,-446.69139233,0.00032876,2]
[310296563,1704463950359,-939.06,0.00032876,2]
[310296564,1704463950369,-500.0,0.00032876,2]
[310296565,1704463950379,-500.0,0.00032876,2]
[310296566,1704463950390,-585.57858136,0.00032876,2]
[310296567,1704463950400,-500.0,0.00032876,2]
[310296568,1704463950410,-500.0,0.00032876,2]
[310296569,1704463950419,-500.0,0.00032876,2]
[310296570,1704463950429,-617.42,0.00032876,2]
[310296571,1704463950728,-500.0,0.00032876,2]
[310296572,1704463950743,-600.86368707,0.00032876,2]
[310296573,1704463950753,-500.0,0.00032876,2]
[310296574,1704463950762,-302.98104532,0.00032876,7]
[310296575,1704463950774,-561.20591744,0.00032876,7]
[310296576,1704463950783,-500.0,0.00032876,7]
[310296577,1704463950793,-644.94296065,0.00032876,7]
[310296578,1704463950803,-763.35,0.00032876,2]
[310296579,1704463950812,-500.0,0.00032876,2]
[310296580,1704463950822,-581.06,0.00032876,2]
[310296581,1704463950831,-533.25,0.00032876,2]
[310296582,1704463950840,-1032.57,0.00032876,2]
[310296583,1704463950850,-500.0,0.00032876,2]
[310296584,1704463950859,-668.81,0.00032876,2]
[310296585,1704463950868,-897.42,0.00032876,2]
[310296586,1704463950878,-500.0,0.00032876,2]
[310296587,1704463950887,-610.9,0.00032876,2]
[310296588,1704463950897,-500.0,0.00032876,2]
[310296589,1704463950907,-542.23,0.00032876,2]
[310296590,1704463950916,-500.0,0.00032876,2]
[310296591,1704463950926,-500.0,0.00032876,2]
[310296592,1704463950936,-977.28,0.00032876,2]
[310296593,1704463950947,-500.0,0.00032876,2]
[310296594,1704463950956,-500.0,0.00032876,2]
[310296595,1704463950966,-564.72,0.00032876,2]
[310296596,1704463950975,-623.13,0.00032876,2]
[310296597,1704463950985,-500.0,0.00032876,2]
[310296598,1704463950994,-660.13,0.00032876,2]
[310296599,1704463951004,-1107.9,0.00032876,2]
[310296600,1704463951013,-500.0,0.00032876,2]
[310296601,1704463951023,-500.0,0.00032876,2]
[310296602,1704463951034,-500.0,0.00032876,2]
[310296603,1704463951043,-500.0,0.00032876,2]
[310296604,1704463951053,-534.02,0.00032876,2]
[310296605,1704463951062,-500.0,0.00032876,2]
[310296606,1704463951071,-1001.59,0.00032876,2]
[310296607,1704463951081,-500.0,0.00032876,2]
[310296608,1704463951090,-500.0,0.00032876,2]
[310296609,1704463951099,-500.0,0.00032876,2]
[310296610,1704463951108,-500.0,0.00032876,2]
[310296611,1704463951118,-500.0,0.00032876,2]
[310296612,1704463951127,-577.73,0.00032876,2]
[310296613,1704463951137,-500.0,0.00032876,2]
[310296614,1704463951147,-515.35,0.00032876,2]
[310296615,1704463951156,-500.0,0.00032876,2]
[310296616,1704463951165,-528.01,0.00032876,2]
[310296617,1704463951175,-500.0,0.00032876,2]
[310296618,1704463951184,-609.91,0.00032876,2]
[310296619,1704463951193,-3164.14,0.00032876,2]
[310296620,1704463951202,-500.0,0.00032876,2]
[310296621,1704463951212,-767.51,0.00032876,2]
[310296622,1704463951221,-500.0,0.00032876,2]
[310296623,1704463951230,-500.0,0.00032876,2]
[310296624,1704463951240,-572.23,0.00032876,2]
[310296625,1704463951249,-500.0,0.00032876,2]
[310296626,1704463951258,-1043.05,0.00032876,2]
[310296627,1704463951267,-663.96,0.00032876,2]
[310296628,1704463951277,-500.0,0.00032876,2]
[310296629,1704463951286,-969.42,0.00032876,2]
[310296630,1704463951295,-500.0,0.00032876,2]
[310296631,1704463951306,-500.0,0.00032876,2]
[310296632,1704463951316,-500.0,0.00032876,2]
[310296633,1704463951326,-951.95,0.00032876,2]
[310296634,1704463951340,-500.0,0.00032876,2]
[310296635,1704463951350,-353.16074556,0.00032876,2]
[310296636,1704463951360,-500.0,0.00032876,2]
[310296637,1704463951370,-500.0,0.00032876,2]
[310296638,1704463951379,-585.0,0.00032876,2]
[310296639,1704463951389,-795.33,0.00032876,2]
[310296640,1704463951397,-500.0,0.00032876,2]
[310296641,1704463951407,-500.0,0.00032876,2]
[310296642,1704463951417,-500.0,0.00032876,2]
[310296643,1704463951427,-500.0,0.00032876,2]
[310296644,1704463951436,-535.25,0.00032876,2]
[310296645,1704463951446,-573.11,0.00032876,2]
[310296646,1704463951456,-1278.92,0.00032876,2]
[310296647,1704463951466,-1115.46,0.00032876,2]
[310296648,1704463951476,-500.0,0.00032876,2]
[310296649,1704463951486,-522.9,0.00032876,2]
[310296650,1704463951497,-503.15,0.00032876,2]
[310296651,1704463951507,-500.0,0.00032876,2]
[310296652,1704463951518,-500.0,0.00032876,2]
[310296653,1704463951528,-500.0,0.00032876,2]
[310296654,1704463951538,-898.64,0.00032876,2]
[310296655,1704463951549,-500.0,0.00032876,2]
[310296656,1704463951560,-500.0,0.00032876,2]
[310296657,1704463951570,-2197.46,0.00032876,2]
[310296658,1704463951585,-1050.63,0.00032876,2]
[310296659,1704463951595,-500.0,0.00032876,2]
[310296660,1704463951605,-512.25,0.00032876,2]
[310296661,1704463951615,-500.0,0.00032876,2]
[310296662,1704463951626,-620.99695114,0.00032876,2]
[310296663,1704463951636,-327.0143165,0.00032876,2]
[310296664,1704463951646,-652.42,0.00032876,2]
[310296665,1704463951657,-500.0,0.00032876,2]
[310296666,1704463951666,-500.96,0.00032876,2]
[310296667,1704463951676,-500.0,0.00032876,2]
[310296668,1704463951686,-499.19113575,0.00032876,2]
[310296669,1704463951695,-737.52,0.00032876,2]
[310296670,1704463951705,-500.0,0.00032876,2]
[310296671,1704463951715,-500.0,0.00032876,2]
[310296672,1704463951726,-500.0,0.00032876,2]
[310296673,1704463951736,-1408.67,0.00032876,2]
[310296674,1704463951747,-500.0,0.00032876,2]
[310296675,1704463951757,-220.14825789,0.00032876,2]
[310296676,1704463951766,-519.09,0.00032876,2]
[310296677,1704463951776,-500.0,0.00032876,2]
[310296678,1704463951786,-500.0,0.00032876,2]
[310296679,1704463951796,-500.0,0.00032876,2]
[310296680,1704463951806,-500.0,0.00032876,2]
[310296681,1704463951816,-500.0,0.00032876,2]
[310296682,1704463951826,-500.0,0.00032876,2]
[310296683,1704463951839,-500.0,0.00032876,2]
[310296684,1704463951849,-500.0,0.00032876,2]
[310296685,1704463951859,-500.0,0.00032876,2]
[310296686,1704463951868,-442.54487856,0.00032876,2]
[310296687,1704463951878,-500.0,0.00032876,2]
[310296688,1704463951888,-628.65111241,0.00032876,2]
[310296689,1704463951898,-1017.17,0.00032876,2]
[310296690,1704463951908,-500.0,0.00032876,2]
[310296691,1704463951919,-500.0,0.00032876,2]
[310296692,1704463951929,-1228.15,0.00032876,2]
[310296693,1704463951939,-1193.22,0.00032876,2]
[310296694,1704463951949,-500.0,0.00032876,2]
[310296695,1704463951958,-500.0,0.00032876,2]
[310296696,1704463951968,-1709.82,0.00032876,2]
[310296697,1704463951978,-500.0,0.00032876,2]
[310296698,1704463951988,-500.0,0.00032876,2]
[310296699,1704463951997,-500.0,0.00032876,2]
[310296700,1704463952007,-500.0,0.00032876,2]
[310296701,1704463952016,-521.26,0.00032876,2]
[310296702,1704463952026,-500.0,0.00032876,2]
[310296703,1704463952035,-1009.32,0.00032876,2]
[310296704,1704463952045,-769.11,0.00032876,2]
[310296705,1704463952054,-500.0,0.00032876,2]
[310296706,1704463952064,-952.84,0.00032876,2]
[310296707,1704463952075,-634.11,0.00032876,2]
[310296708,1704463952087,-500.0,0.00032876,2]
[310296709,1704463952098,-1188.9,0.00032876,2]
[310296710,1704463952107,-500.0,0.00032876,2]
[310296711,1704463952117,-558.13,0.00032876,2]
[310296712,1704463952127,-773.34,0.00032876,2]
[310296713,1704463952137,-565.44884224,0.00032876,2]
[310296714,1704463952146,-500.0,0.00032876,2]
[310296715,1704463952156,-500.0,0.00032876,2]
[310296716,1704463952166,-500.0,0.00032876,2]
[310296717,1704463952176,-881.16,0.00032876,2]
[310296718,1704463952186,-500.0,0.00032876,2]
[310296719,1704463952196,-500.0,0.00032876,2]
[310296720,1704463952206,-1431.77,0.00032876,2]
[310296721,1704463952216,-500.0,0.00032876,2]
[310296722,1704463952225,-798.14,0.00032876,2]
[310296723,1704463952235,-500.0,0.00032876,2]
[310296724,1704463952245,-2061.68,0.00032876,2]
[310296725,1704463952254,-500.0,0.00032876,2]
[310296726,1704463952264,-909.7,0.00032876,2]
[310296727,1704463952273,-500.0,0.00032876,2]
[310296728,1704463952283,-500.0,0.00032876,2]
[310296729,1704463952292,-1481.56,0.00032876,2]
[310296730,1704463952301,-500.0,0.00032876,2]
[310296731,1704463952311,-500.0,0.00032876,2]
[310296732,1704463952321,-1575.41,0.00032876,2]
[310296733,1704463952334,-330.76260408,0.00032876,2]
[310296734,1704463952343,-500.39,0.00032876,2]
[310296735,1704463952353,-982.39,0.00032876,2]
[310296736,1704463952362,-500.0,0.00032876,2]
[310296737,1704463952371,-500.0,0.00032876,2]
[310296738,1704463952380,-616.4,0.00032876,2]
[310296739,1704463952390,-656.28,0.00032876,2]
[310296740,1704463952399,-615.45,0.00032876,2]
[310296741,1704463952409,-815.67,0.00032876,2]
[310296742,1704463952419,-855.97,0.00032876,2]
[310296743,1704463952429,-500.0,0.00032876,2]
[310296744,1704463952440,-914.92,0.00032876,2]
[310296745,1704463952449,-500.0,0.00032876,2]
[310296746,1704463952459,-759.49,0.00032876,2]
[310296747,1704463952469,-612.52,0.00032876,2]
[310296748,1704463952478,-500.0,0.00032876,2]
[310296749,1704463952487,-638.72,0.00032876,2]
[310296750,1704463952498,-500.0,0.00032876,2]
[310296751,1704463952507,-500.0,0.00032876,2]
[310296752,1704463952517,-500.0,0.00032876,2]
[310296753,1704463952527,-779.76,0.00032876,2]
[310296754,1704463952537,-1184.83,0.00032876,2]
[310296755,1704463952547,-547.36,0.00032876,2]
[310296756,1704463952556,-1087.44,0.00032876,2]
[310296757,1704463952567,-500.0,0.00032876,2]
[310296758,1704463952577,-636.22046892,0.00032876,2]
[310296759,1704463952590,-908.56,0.00032876,2]
[310296760,1704463952599,-364.98045785,0.00032876,2]
[310296761,1704463952609,-500.0,0.00032876,2]
[310296762,1704463952618,-500.0,0.00032876,2]
[310296763,1704463952629,-5038.11,0.00032876,2]
[310296764,1704463952642,-880.69,0.00032876,2]
[310296765,1704463952651,-884.22,0.00032876,2]
[310296766,1704463952661,-500.0,0.00032876,2]
[310296767,1704463952671,-828.3,0.00032876,2]
[310296768,1704463952680,-500.0,0.00032876,2]
[310296769,1704463952690,-1954.72,0.00032876,2]
[310296770,1704463952700,-500.0,0.00032876,2]
[310296771,1704463952709,-500.0,0.00032876,2]
[310296772,1704463952719,-500.0,0.00032876,2]
[310296773,1704463952729,-964.87,0.00032876,2]
[310296774,1704463952738,-500.0,0.00032876,2]
[310296775,1704463952748,-1145.56,0.00032876,2]
[310296776,1704463952758,-1200.04,0.00032876,2]
[310296777,1704463952767,-794.58,0.00032876,2]
[310296778,1704463952776,-855.41,0.00032876,2]
[310296779,1704463952786,-534.82,0.00032876,2]
[310296780,1704463952796,-773.85,0.00032876,2]
[310296781,1704463952805,-500.0,0.00032876,2]
[310296782,1704463952813,-1238.16,0.00032876,2]
[310296783,1704463952823,-500.0,0.00032876,2]
[310296784,1704463952833,-3690.73,0.00032876,2]
[310296785,1704463952842,-170.14421571,0.00032876,2]
[310296786,1704463952852,-10000.0,0.00032876,3]
[310296787,1704463952861,-500.0,0.00032876,2]
[310296788,1704463952871,-547.97459354,0.00032876,2]
[310296789,1704463952881,-10000.0,0.00032876,3]
[310296790,1704463952890,-7620.50954469,0.00032876,3]
[310296791,1704463952900,-692.03,0.00032876,2]
[310296792,1704463952909,-559.53,0.00032876,2]
[310296793,1704463952919,-500.0,0.00032876,2]
[310296794,1704463952928,-500.0,0.00032876,2]
[310296795,1704463952936,-500.0,0.00032876,2]
[310296796,1704463952946,-500.0,0.00032876,2]
[310296797,1704463952955,-954.52,0.00032876,2]
[310296798,1704463952964,-654.46,0.00032876,2]
[310296799,1704463952974,-763.63,0.00032876,2]
[310296800,1704463952983,-1216.82,0.00032876,2]
[310296801,1704463952993,-876.69,0.00032876,2]
[310296802,1704463953002,-511.23,0.00032876,2]
[310296803,1704463953011,-500.0,0.00032876,2]
[310296804,1704463953020,-1777.29,0.00032876,2]
[310296805,1704463953030,-500.0,0.00032876,2]
[310296806,1704463953039,-813.3,0.00032876,2]
[310296807,1704463953048,-1082.13,0.00032876,2]
[310296808,1704463953057,-677.81,0.00032876,2]
[310296809,1704463953156,-1325.23,0.00032876,2]
[310296810,1704463953166,-500.0,0.00032876,2]
[310296811,1704463953175,-3298.71,0.00032876,2]
[310296812,1704463953186,-500.0,0.00032876,2]
[310296813,1704463953195,-798.97,0.00032876,2]
[310296814,1704463953204,-500.0,0.00032876,2]
[310296815,1704463953214,-500.0,0.00032876,2]
[310296816,1704463953223,-900.8,0.00032876,2]
[310296817,1704463953233,-500.0,0.00032876,2]
[310296818,1704463953242,-1067.2,0.00032876,2]
[310296819,1704463953252,-2016.59,0.00032876,2]
[310296820,1704463953262,-500.0,0.00032876,2]
[310296821,1704463953271,-752.23,0.00032876,2]
[310296822,1704463953280,-1251.67,0.00032876,2]
[310296823,1704463953290,-811.52,0.00032876,2]
[310296824,1704463953300,-500.0,0.00032876,2]
[310296825,1704463953309,-8654.29,0.00032876,2]
[310296826,1704463953318,-519.88582479,0.00032876,2]
[310296827,1704463953327,-909.25,0.00032876,2]
[310296828,1704463953341,-952.02,0.00032876,2]
[310296829,1704463953350,-963.43,0.00032876,2]
[310296830,1704463953359,-500.0,0.00032876,2]
[310296831,1704463953368,-2290.16,0.00032876,2]
[310296832,1704463953377,-500.0,0.00032876,2]
[310296833,1704463953387,-511.88,0.00032876,2]
[310296834,1704463953397,-1293.97,0.00032876,2]
[310296835,1704463953406,-5023.74,0.00032876,2]
[310296836,1704463953415,-960.97,0.00032876,2]
[310296837,1704463953424,-1316.73,0.00032876,2]
[310296838,1704463953434,-500.0,0.00032876,2]
[310296839,1704463953444,-307.44024589,0.00032876,2]
[310296840,1704463953454,-2888.44,0.00032876,2]
[310296841,1704463953463,-780.49,0.00032876,2]
[310296842,1704463953473,-213.57,0.00032876,2]
[310296843,1704463953484,-873.53,0.00032876,2]
[310296844,1704463953494,-840.85,0.00032876,2]
[310296845,1704463953504,-500.0,0.00032876,2]
[310296846,1704463953514,-552.42,0.00032876,2]
[310296847,1704463953525,-17362.55,0.00032876,2]
[310296848,1704463953534,-2346.84,0.00032876,2]
[310296849,1704463953544,-4809.34,0.00032876,2]
[310296850,1704463953554,-607.5,0.00032876,2]
[310296851,1704463953565,-619.58,0.00032876,2]
[310296852,1704463953575,-539.06,0.00032876,2]
[310296853,1704463953586,-500.0,0.00032876,2]
[310296854,1704463953597,-224.37352919,0.00032876,2]
[310296855,1704463953606,-500.0,0.00032876,2]
[310296856,1704463953616,-500.0,0.00032876,2]
[310296857,1704463953626,-9463.24,0.00032876,2]
[310296858,1704463953637,-500.0,0.00032876,2]
[310296859,1704463953647,-4907.15,0.00032876,2]
[310296860,1704463953656,-4324.26,0.00032876,2]
[310296861,1704463953665,-2724.92,0.00032876,2]
[310296862,1704463953675,-11882.1,0.00032876,2]
[310296863,1704463953685,-746.12,0.00032876,2]
[310296864,1704463953695,-845.63,0.00032876,2]
[310296865,1704463953705,-500.0,0.00032876,2]
[310296866,1704463953714,-500.0,0.00032876,2]
[310296867,1704463953724,-3292.08,0.00032876,2]
[310296868,1704463953734,-500.0,0.00032876,2]
[310296869,1704463953743,-918.77,0.00032876,2]
[310296870,1704463953753,-644.83,0.00032876,2]
[310296871,1704463953764,-500.0,0.00032876,2]
[310296872,1704463953773,-500.0,0.00032876,2]
[310296873,1704463953783,-1395.08,0.00032876,2]
[310296874,1704463953792,-3344.35,0.00032876,2]
[310296875,1704463953802,-280.21645025,0.00032876,2]
[310296876,1704463953812,-613.87,0.00032876,2]
[310296877,1704463953821,-500.0,0.00032876,2]
[310296878,1704463953831,-1259.17,0.00032876,2]
[310296879,1704463953841,-2954.54,0.00032876,2]
[310296880,1704463953850,-298.18329437,0.00032876,2]
[310296881,1704463953860,-737.12,0.00032876,2]
[310296882,1704463953869,-2366.41,0.00032876,2]
[310296883,1704463953878,-500.0,0.00032876,2]
[310296884,1704463953887,-500.0,0.00032876,2]
[310296885,1704463953897,-5440.99,0.00032876,2]
[310296886,1704463953907,-3361.08,0.00032876,2]
[310296887,1704463953917,-1558.45,0.00032876,2]
[310296888,1704463953927,-500.0,0.00032876,2]
[310296889,1704463953937,-1062.83,0.00032876,2]
[310296890,1704463953947,-585.94033135,0.00032876,2]
[310296891,1704463953957,-812.59,0.00032876,2]
[310296892,1704463953966,-646.75,0.00032876,2]
[310296893,1704463953975,-500.0,0.00032876,2]
[310296894,1704463953984,-1323.29,0.00032876,2]
[310296895,1704463953993,-500.0,0.00032876,2]
[310296896,1704463954003,-16516.01,0.00032876,2]
[310296897,1704463954013,-747.13,0.00032876,2]
[310296898,1704463954023,-8220.31,0.00032876,2]
[310296899,1704463954032,-500.0,0.00032876,2]
[310296900,1704463954084,-1218.24,0.00032876,2]
[310296901,1704463954093,-500.0,0.00032876,2]
[310296902,1704463954103,-678.9,0.00032876,2]
[310296903,1704463954114,-509.33,0.00032876,2]
[310296904,1704463954124,-547.89508473,0.00032876,2]
[310296905,1704463954133,-625.64,0.00032876,2]
[310296906,1704463954143,-500.0,0.00032876,2]
[310296907,1704463954154,-1093.85,0.00032876,2]
[310296908,1704463954163,-500.0,0.00032876,2]
[310296909,1704463954172,-1229.71,0.00032876,2]
[310296910,1704463954182,-528.93,0.00032876,2]
[310296911,1704463954192,-500.0,0.00032876,2]
[310296912,1704463954201,-500.0,0.00032876,2]
[310296913,1704463954211,-500.0,0.00032876,2]
[310296914,1704463954221,-500.0,0.00032876,2]
[310296915,1704463954230,-696.27,0.00032876,2]
[310296916,1704463954240,-500.0,0.00032876,2]
[310296917,1704463954249,-1228.93,0.00032876,2]
[310296918,1704463954259,-500.0,0.00032876,2]
[310296919,1704463954268,-500.0,0.00032876,2]
[310296920,1704463954278,-906.38,0.00032876,2]
[310296921,1704463954287,-1479.47,0.00032876,2]
[310296922,1704463954297,-1060.36,0.00032876,2]
[310296923,1704463954307,-1559.68,0.00032876,2]
[310296924,1704463954316,-500.0,0.00032876,2]
[310296925,1704463954326,-1024.05,0.00032876,2]
[310296926,1704463954337,-535.98,0.00032876,2]
[310296927,1704463954347,-20552.87,0.00032876,2]
[310296928,1704463954356,-500.0,0.00032876,2]
[310296929,1704463954366,-732.24,0.00032876,2]
[310296930,1704463954375,-213.3928195,0.00032876,2]
[310296931,1704463954385,-764.89,0.00032876,2]
[310296932,1704463954394,-1384.47,0.00032876,2]
[310296933,1704463954403,-2343.7,0.00032876,2]
[310296934,1704463954414,-500.0,0.00032876,2]
[310296935,1704463954425,-855.82,0.00032876,2]
[310296936,1704463954435,-1443.03,0.00032876,2]
[310296937,1704463954444,-1467.75,0.00032876,2]
[310296938,1704463954454,-2427.76,0.00032876,2]
[310296939,1704463954465,-500.0,0.00032876,2]
[310296940,1704463954475,-500.0,0.00032876,2]
[310296941,1704463954485,-1262.81,0.00032876,2]
[310296942,1704463954494,-976.69,0.00032876,2]
[310296943,1704463954504,-1404.49,0.00032876,2]
[310296944,1704463954513,-963.68,0.00032876,2]
[310296945,1704463954524,-502.15,0.00032876,2]
[310296946,1704463954533,-1710.42,0.00032876,2]
[310296947,1704463954543,-1043.98,0.00032876,2]
[310296948,1704463954553,-500.0,0.00032876,2]
[310296949,1704463954563,-827.77,0.00032876,2]
[310296950,1704463954573,-500.0,0.00032876,2]
[310296951,1704463954582,-670.86,0.00032876,2]
[310296952,1704463954591,-552.27,0.00032876,2]
[310296953,1704463954601,-2031.67,0.00032876,2]
[310296954,1704463954610,-500.0,0.00032876,2]
[310296955,1704463954619,-593.61,0.00032876,2]